Cogmind - Beta 16 @@@ ROGUE MODE // 2025.11.11 @ 16:48:03 Player: jes Result: Self-destructed Performance ------------- Evolutions (2) 1000 Regions Visited (4) 800 Robots Destroyed (43) 215 Value Destroyed (1493) 1493 Prototype IDs (3) 60 Alien Tech Used (0) 0 Bonus (0) 0 TOTAL SCORE: 3568 Bonus ------- None Cogmind --------- Core Integrity 380/550 Matter 275/300 Energy 146/160 System Corruption 9% Temperature Cool (27) Movement Walking (175) Ox1 Location -8/Storage Parts ------- > --- POWER (1) -------- Light Nuclear Core > --- PROPULSION (4) --- Improved Aluminum Leg > --- UTILITY (4) ------ Improved Heat Sink Cooling System Small Storage Unit Improved Sensor Array > --- WEAPON (2) ------- Beam Rifle Particle Gun > --- INVENTORY (8) ---- High-capacity Matter Pod (200) Particle Gun Pulse Rifle Grenade Launcher Improved Datajack Peak State ------------ > --- POWER ------------ Light Nuclear Core > --- PROPULSION ------- Aluminum Leg Aluminum Leg Aluminum Leg Improved Aluminum Leg > --- UTILITY ---------- Improved Heat Sink Cooling System Small Storage Unit Improved Sensor Array > --- WEAPON ----------- Beam Rifle Heavy Assault Rifle > --- INVENTORY -------- Light Nuclear Core Aluminum Leg High-capacity Matter Pod Beam Rifle Particle Gun Pulse Rifle Grenade Launcher Improved Datajack [Rating: 22] Favorites ----------- Power Light Nuclear Core Engine Light Deuterium Engine Power Core Light Nuclear Core Propulsion Aluminum Leg Leg Aluminum Leg Utility Small Storage Unit Device Disposable Heat Sink Storage Small Storage Unit Hackware Hacking Suite Protection Core Shielding Weapon Particle Gun Energy Gun Particle Gun Ballistic Gun Heavy Assault Rifle Launcher Grenade Launcher Special Melee Weapon Improved Datajack Build | -11 -10 -9 -8 -8 ------- Run | Yrd Mat Mat Mat Sto Slots Evolved 4 | . . 2 2 . Power . | . . . . . Propulsion 2 | . . 2 . . Utility 2 | . . . 2 . Weapon . | . . . . . Parts Attached 57 | 5 20 16 13 3 Power 9 | 1 4 2 1 1 Engine 6 | 1 3 2 . . Core 3 | . 1 . 1 1 Reactor . | . . . . . Propulsion 21 | 2 8 8 2 1 Treads . | . . . . . Leg 21 | 2 8 8 2 1 Wheel . | . . . . . Hover . | . . . . . Flight . | . . . . . Utility 10 | 1 3 2 4 . Device 7 | . 2 2 3 . Storage 1 | 1 . . . . Processor . | . . . . . Hackware 1 | . . . 1 . Protection 1 | . 1 . . . Artifact . | . . . . . Weapon 17 | 1 5 4 6 1 Energy Gun 10 | 1 3 2 4 . Energy Cannon . | . . . . . Ballistic Gun 5 | . 2 1 2 . Ballistic Cannon . | . . . . . Launcher 1 | . . . . 1 Special Weapon . | . . . . . Impact Weapon . | . . . . . Slashing Weapon . | . . . . . Piercing Weapon . | . . . . . Special Melee Weapon 1 | . . 1 . . Unidentified Prototypes . | . . . . . Parts Lost 14 | . 5 . 3 6 Power 2 | . 1 . . 1 Propulsion 5 | . 1 . . 4 Utility 2 | . . . 2 . Weapon 5 | . 3 . 1 1 Highest Loss Streak 5 | . 3 . 3 5 To Critical Strikes . | . . . . . Average Backups 7 | 2 6 7 7 7 Power . | . . 1 . . Propulsion 1 | . 3 1 1 . Utility 1 | . 1 2 1 1 Weapon 2 | 1 1 2 3 3 Tool/Special . | . . . . . Unused Backups 10 | 2 2 3 1 2 Power 1 | . . . 1 . Propulsion 4 | 2 1 1 . . Utility 3 | . 1 1 . 1 Weapon 2 | . . 1 . 1 Tool/Special . | . . . . . Average Slot Usage (%) 96 | . 94 99 97 96 Engine 7 | . 10 6 6 . Core 4 | . 2 4 2 8 Leg 34 | . 28 43 36 32 Device 13 | . 5 11 21 27 Storage 11 | . 14 11 9 9 Protection 1 | . 4 . . . Energy Gun 14 | . 19 14 11 11 Ballistic Gun 7 | . 8 6 5 6 Peak Build Rating 22 | 5 12 16 22 22 Average Rating 14 | 3 7 14 19 21 On Entrance 10 | . 5 12 14 22 Avg Prop Armor Cover (%) . | . . . . . Naked Turns . | . . . . . Heaviest Build 20 | 11 15 17 20 20 Greatest Support 43 | 20 20 40 43 43 Greatest Overweight (x) 3 | 3 . . . . Average Overweight (x) . | . . . . . Largest Inventory Capacity 8 | 8 8 8 8 8 Average Capacity 7 | 7 8 8 8 8 Most Carried 8 | 5 8 8 8 8 Average Carried 7 | 3 6 7 7 7 Final Capacity 8 | 8 8 8 8 8 Final Carried 8 | 5 8 8 8 5 Class Distribution -------------------- 59% | Scavenger-Mutant 40% | Mutant Dominant Class ---------------- Mutant | -10/Materials Mutant | -9/Materials Scavenger-Mutant | -8/Materials Scavenger-Mutant | -8/Storage Resources | -11 -10 -9 -8 -8 ----------- Run | Yrd Mat Mat Mat Sto Matter Collected 1381 | 210 245 512 339 75 Remotely . | . . . . . Salvage Created 1728 | . 448 561 511 208 Parts 103 | . 25 38 34 6 Haulers Intercepted . | . . . . . Recyclers Shooed 2 | . . 1 1 . Parts Field Recycled . | . . . . . Retrieved Matter . | . . . . . Parts Self-Destructed . | . . . . . Prevented . | . . . . . Parts Restored . | . . . . . Kills | -11 -10 -9 -8 -8 ------- Run | Yrd Mat Mat Mat Sto Combat Hostiles Destroyed 37 | . 11 13 9 4 Guns 37 | . 11 13 9 4 Classes Destroyed 7 | . 2 3 2 . Worker 2 | . . 1 . 1 Operator 1 | . . . 1 . Watcher 3 | . . 1 2 . Swarmer 3 | . 3 . . . Grunt 28 | . 8 11 5 4 Brawler 1 | . . . 1 . Sentry 5 | . . 2 3 . Best Kill Streak 6 | . 4 6 2 2 Combat Bots Only 5 | . 4 5 2 2 Max Kills in Single Turn 1 | . 1 1 1 1 Gunslinging . | . . . . . Exploded . | . . . . . Melee . | . . . . . Uniques/NPCs Destroyed . | . . . . . Combat | -11 -10 -9 -8 -8 -------- Run | Yrd Mat Mat Mat Sto Hostile Shots Fired 232 | . 101 52 37 42 Missed 55 | . 28 17 2 8 Hits 177 | . 73 35 35 34 Melee 6 | . . . 6 . Projectile 171 | . 73 35 29 34 Critical Strikes 6 | . . 1 2 3 Damage Taken 2371 | . 812 407 609 543 Core 353 | . 130 53 90 80 Absorbed by Shields . | . . . . . Redirected to Shielding 21 | . 21 . . . Core Remaining (%) 78 | 100 48 86 . . Volleys Fired 159 | . 57 44 38 20 Largest 2 | . 2 2 2 2 Hottest 130 | . 85 130 130 121 Shots Fired 302 | . 106 85 73 38 Gun 301 | . 106 85 73 37 Cannon . | . . . . . Launcher 1 | . . . . 1 Special . | . . . . . Kinetic 97 | . 42 22 27 6 Thermal 177 | . 37 63 46 31 Explosive 1 | . . . . 1 Electromagnetic 27 | . 27 . . . Robot Hit Streak 12 | . 12 7 5 8 Robot Miss Streak 5 | . 5 5 2 3 Penetration Max . | . . . . . Secondary Targets . | . . . . . Shots Hit Robots 207 | . 71 55 55 26 Core Hits 87 | . 25 23 27 12 Critical Kills . | . . . . . Critical Parts Destroyed . | . . . . . Critical Strikes 6 | . 1 2 1 2 Burn 6 | . 1 2 1 2 Melee Attacks 13 | . . 7 6 . Impact . | . . . . . Slashing . | . . . . . Piercing . | . . . . . Sneak Attacks 11 | . . 6 5 . Combat Hostiles . | . . . . . Follow-up Attacks . | . . . . . Damage Inflicted 2610 | . 739 698 773 400 Guns 2610 | . 739 698 773 400 Cannons . | . . . . . Explosions . | . . . . . Melee . | . . . . . Ramming . | . . . . . Kinetic 801 | . 258 159 316 68 Thermal 1598 | . 270 539 457 332 Explosive . | . . . . . Electromagnetic 211 | . 211 . . . Impact . | . . . . . Slashing . | . . . . . Piercing . | . . . . . Highest Corruption 9 | . . . 9 9 Average Corruption 8 | . . . 8 9 Corruption Purged . | . . . . . Corruption Blocked . | . . . . . Effects 26 | . . . 10 16 Message Errors 10 | . . . 2 8 Matter Fused 6 | . . . 2 4 Heat Flow Errors 3 | . . . 2 1 Energy Discharges 2 | . . . 2 . Parts Fused 2 | . . . . 2 Data Loss (minor) 2 | . . . 2 . Weapon Failures 1 | . . . . 1 Overload Shots . | . . . . . Overflow Damage . | . . . . . Projectiles . | . . . . . Explosions . | . . . . . Melee . | . . . . . Knockbacks . | . . . . . Impact . | . . . . . Kinetic . | . . . . . Secondary . | . . . . . Self-Inflicted Damage . | . . . . . Shots . | . . . . . Rammed . | . . . . . Targets Rammed . | . . . . . Kicked . | . . . . . Crushed . | . . . . . Highest Temperature 199 | . 115 199 197 99 Average Temperature 72 | . 37 81 107 55 Received Heat Transfer 1194 | . 354 210 270 360 Siege Activations . | . . . . . Martial Activations . | . . . . . Shielding Activations . | . . . . . Robots Disrupted . | . . . . . Combat Hostiles . | . . . . . Robots Corrupted . | . . . . . Combat Hostiles . | . . . . . Parts Fried . | . . . . . Impact Corruptions . | . . . . . Robots Melted . | . . . . . Combat Hostiles . | . . . . . Parts Melted 13 | . 4 3 3 3 Heat Transferred 4361 | . 698 1480 1221 962 Parts Sabotaged . | . . . . . Parts Stolen . | . . . . . Parts Stripped . | . . . . . Power Chain Reactions . | . . . . . Alert | -11 -10 -9 -8 -8 ------- Run | Yrd Mat Mat Mat Sto Maximum Alert Level . | . . . . . Low Security (%) 100 | 100 100 100 100 100 Level 1 . | . . . . . Level 2 . | . . . . . Level 3 . | . . . . . Level 4 . | . . . . . Level 5 . | . . . . . High Security . | . . . . . Max Security . | . . . . . Peak Influence 134 | . 88 134 114 78 Initial 51 | . . 5 51 44 Average 37 | . 28 60 43 15 Influence Increases 1098 | . 308 329 308 153 Destroy 0b10 Robot/C 740 | . 220 260 180 80 Destroy 0b10 Robot/NC 30 | . . 10 15 5 Destroy Leader 146 | . 40 52 54 . Successful Hack 64 | . 33 5 26 . Disable Machine 15 | . . . . 15 Destroy Structure 13 | . . 2 3 8 Lose Combat Pursuer 90 | . 15 . 30 45 Influence Decreases 1040 | . 293 221 325 201 Entered New Map 144 | . . 10 72 62 Time Decay 771 | . 229 211 232 99 Lost Part 111 | . 50 . 21 40 Purge Threat 14 | . 14 . . . Squads Dispatched 8 | . 1 4 2 1 Investigation . | . . . . . Extermination . | . . . . . Reinforcement 8 | . 1 4 2 1 Assault . | . . . . . Garrison . | . . . . . Intercept . | . . . . . Searches Triggered . | . . . . . Construction Impeded . | . . . . . Haulers Reinforced . | . . . . . Active Scanning Responses . | . . . . . Cargo Convoy Interrupts . | . . . . . Stealth | -11 -10 -9 -8 -8 --------- Run | Yrd Mat Mat Mat Sto Distress Signals 8 | . 3 5 . . Communications Jammed . | . . . . . Distress Signals . | . . . . . Times Spotted 65 | . 17 24 15 9 Peak Tracking Total 5 | . 5 4 4 4 Tactical Retreats 6 | . 1 . 2 3 Traps | -11 -10 -9 -8 -8 ------- Run | Yrd Mat Mat Mat Sto Traps Triggered 1 | . . 1 . . Indirectly . | . . . . . Trap Hack Attempts 54 | . . 54 . . Triggered . | . . . . . Disarmed 3 | . . 3 . . Reprogrammed . | . . . . . Reused . | . . . . . Traps Extracted . | . . . . . Installed . | . . . . . Triggered . | . . . . . Machines | -11 -10 -9 -8 -8 ---------- Run | Yrd Mat Mat Mat Sto Machines Disabled 1 | . . . . 1 Max in Single Turn 1 | . . . . 1 Machines Repaired . | . . . . . Machines Dismantled . | . . . . . Machines Sabotaged . | . . . . . Overloaded Fab Kills . | . . . . . Hacking | -11 -10 -9 -8 -8 --------- Run | Yrd Mat Mat Mat Sto Machines Accessed 13 | . 6 2 4 1 Terminals 8 | . 4 1 3 . Fabricators . | . . . . . Repair Stations 1 | . . . . 1 Recycling Units 2 | . 2 . . . Scanalyzers 2 | . . 1 1 . Garrison Access . | . . . . . Total Hacks 53 | . 26 4 22 1 Successful 36 | . 17 4 15 . Failed 17 | . 9 . 7 1 Catastrophic 2 | . . . 1 1 Database Lockouts . | . . . . . Manual . | . . . . . Terminals 40 | . 23 2 15 . Fabricators . | . . . . . Repair Stations 1 | . . . . 1 Recycling Units 3 | . 3 . . . Scanalyzers 9 | . . 2 7 . Garrison Access . | . . . . . Terminal Hacks 26 | . 14 2 10 . Robot Analysis 1 | . 1 . . . Prototype ID Bank 2 | . 2 . . . Emergency Access Points 1 | . . . 1 . Terminal Index 1 | . . . 1 . Alert Level 2 | . 2 . . . Unreport Threat 1 | . 1 . . . Locate Traps 4 | . 1 1 2 . Dispatch Records 3 | . 2 . 1 . Patrol Status 1 | . . . 1 . Transport Status 2 | . . . 2 . Reinforcement Status 1 | . . . 1 . Hauler Manifests 2 | . 2 . . . Zone Layout 5 | . 3 1 1 . Fabricator Hacks . | . . . . . Repair Station Hacks . | . . . . . Recycling Unit Hacks 3 | . 3 . . . Report Inventory 2 | . 2 . . . Retrieve Components 1 | . 1 . . . Scanalyzer 7 | . . 2 5 . Retrieve Study 7 | . . 2 5 . Garrison Access Hacks . | . . . . . Unauthorized Hacks . | . . . . . Terminals . | . . . . . Fabricators . | . . . . . Repair Stations . | . . . . . Recycling Units . | . . . . . Scanalyzers . | . . . . . Garrison Access . | . . . . . Data Cores Recovered . | . . . . . Used . | . . . . . Hacking Detections 10 | . 3 2 4 1 Full Trace Events . | . . . . . Feedback Events . | . . . . . Feedback Blocked . | . . . . . Robot Schematics Acquired . | . . . . . Robots Built . | . . . . . Authchips . | . . . . . Time . | . . . . . Total Robot Build Rating . | . . . . . Part Schematics Acquired . | . . . . . Parts Built . | . . . . . Authchips . | . . . . . Time . | . . . . . Total Part Build Rating . | . . . . . Part Studies Acquired 7 | . . 2 5 . Parts Repaired . | . . . . . Time . | . . . . . Parts Recycled . | . . . . . Recycled Matter . | . . . . . Retrieved Matter . | . . . . . Retrieved Components 10 | . 10 . . . Parts Scanalyzed . | . . . . . Part Schematics Acquired . | . . . . . Parts Damaged . | . . . . . Bothacking | -11 -10 -9 -8 -8 ------------ Run | Yrd Mat Mat Mat Sto Used RIF Installer . | . . . . . Robots Hacked 8 | . . 4 4 . Non-combat 8 | . . 4 4 . Combat . | . . . . . Robot Hacks Applied 11 | . . 6 5 . parse_system 3 | . . 2 1 . no_distress 5 | . . 2 3 . find_recycling 2 | . . 1 1 . check_alert 1 | . . 1 . . Relay Couplers Released . | . . . . . Fabnet Peak Effective % . | . . . . . Robots Rewired . | . . . . . Allies Hacked . | . . . . . Hacks Repelled . | . . . . . Allies | -11 -10 -9 -8 -8 -------- Run | Yrd Mat Mat Mat Sto Total Allies . | . . . . . Largest Group . | . . . . . Highest-Rated Group . | . . . . . Highest-Rated Ally . | . . . . . Total Orders . | . . . . . Ally Attacks . | . . . . . Total Damage . | . . . . . Kills . | . . . . . Allies Corrupted . | . . . . . Allies Melted . | . . . . . Intel | -11 -10 -9 -8 -8 ------- Run | Yrd Mat Mat Mat Sto Active Infowar (turns) 996 | . . 115 533 348 Sensors 690 | . . . 342 348 Structural 307 | . . 115 192 . Robot Analysis Total 1 | . 1 . . . Derelict Logs Recovered . | . . . . . Drone Launches . | . . . . . Drone Recoveries . | . . . . . Exploration | -11 -10 -9 -8 -8 ------------- Run | Yrd Mat Mat Mat Sto Turns Passed 2432 | 89 815 635 533 360 Spaces Moved 1205 | 54 358 303 284 206 Core 18 | 18 . . . . Treads . | . . . . . Legs 1187 | 36 358 303 284 206 Wheels . | . . . . . Hover . | . . . . . Flight . | . . . . . Fastest Speed 50 | 50 120 105 105 105 Average Speed 111 | 137 120 105 106 105 Slowest Speed 200 | 200 120 120 108 105 Overloaded Moves . | . . . . . Propulsion Burnouts . | . . . . . Robots Hopped . | . . . . . Potential Cave-ins . | . . . . . Cave-ins Triggered . | . . . . . Exploration Rate (%) 25 | 5 51 29 22 19 Regions Visited 4 Branch Regions 1 Pre-discovered Areas . | . . . . . Known Exits Taken . | . . . . . Unknown Exits Taken 4 | 1 1 1 1 . Scrap Searched . | . . . . . Spaces Dug . | . . . . . Terrain Destroyed 7 | . . . . 7 Melee . | . . . . . Projectile . | . . . . . AOE 7 | . . . . 7 Terrain Rammed . | . . . . . Walls Destroyed . | . . . . . Machines Disabled . | . . . . . Actions | -11 -10 -9 -8 -8 --------- Run | Yrd Mat Mat Mat Sto Total 2005 | 67 652 537 440 309 Wait 419 | . 191 82 72 74 Move 1201 | 53 357 302 283 206 Hop . | . . . . . Pick Up 32 | 7 11 9 5 . Fast Attach 14 | 5 3 3 3 . Attach 13 | . 5 2 3 3 Detach 1 | . 1 . . . Swap 57 | . 14 19 19 5 Drop 42 | 2 13 15 11 1 Fire 159 | . 57 44 38 20 Melee 13 | . . 7 6 . Ram . | . . . . . Kick . | . . . . . Crush . | . . . . . Escape Stasis . | . . . . . Rewire . | . . . . . Trap 54 | . . 54 . . Miscellaneous . | . . . . . Route ------- -11/Scrapyard -10/Materials -9/Materials (discovered 2 exits: *Mat / [*Min]) -8/Materials -8/Storage History --------- Turn | Location | Event 2 | -11/Scrapyard | Met Revision 17 33 | -11/Scrapyard | Discovered new exit (range 15) 90 | -11/Scrapyard | Entered Materials 303 | -10/Materials | Build established: Mutant 684 | -10/Materials | Core integrity fell below 50% 702 | -10/Materials | Lost 3 parts (1n2w) 846 | -10/Materials | Discovered new exit (range 10) 905 | -10/Materials | Entered another Materials area 905 | -9/Materials | Evolved 2 slots: Propulsion x2 946 | -9/Materials | Build established: Scavenger-Mutant 1133 | -9/Materials | Discovered new exit (range 9) 1268 | -9/Materials | Build established: Mutant 1519 | -9/Materials | Discovered new exit (range 5) 1540 | -9/Materials | Entered another Materials area 1540 | -8/Materials | Evolved 2 slots: Utility x2 1599 | -8/Materials | Build established: Scavenger-Mutant 1769 | -8/Materials | Lost 3 parts (2u1w) 2000 | -8/Materials | Discovered new exit (range 14) 2073 | -8/Materials | Entered Storage 2409 | -8/Storage | Lost 5 parts (1p3n1w) 2433 | -8/Storage | Self-destructed Last Messages --------------- 02378_ Lgt. Nuclear Core melted. 02378_ G-47 Trooper destroyed. 02379_ <7%CST 4GCT33RKMTA8 H|RFOLS9E0O 02379_ R-06 Scavenger collects Aluminum Leg+. 02381_ Acquired 29 matter. 02396_ U-05 Engineer builds a Door. 02403_ System corrupted: Matter fused (-6). 02403_ Acquired 6 matter. 02416_ Storage Shell breached. 02419_ RIJ7#NEUG7P VO,HYO#I6U> 02419_ K-01 Serf collects debris. 02424_ G-47 Trooper suffers critical hit (Burn). 02424_ Particle Gun melted. 02424_ G-47 Trooper destroyed. 02426_ K-01 Serf collects debris. 02430_ G-47 Trooper suffers critical hit (Burn). 02430_ K-01 Serf destroyed. 02431_ Aluminum Leg+ destroyed. 02433_ Critical hit (Burn: +37). 02433_ K-01 Serf collects debris. Map ----- +----------------------------------------------------+ | | | | | | | | | | | | | | | | | | | ##########???????????????????????????????????????? | | #??????????????????????#????????????????? | | """ """ #?????????????????????? ???????????????? | | """ """ #?????????????????????? "???????????????? | | """ """ #?????????????????????? """?????????????? | | #?????????????????????# """?????????????? | | ^ ] #?????????????????????# ""??????????????? | | #?????????????????????# ""??????????????? | | #?????????????????????? ???????????????? | | ####+#####??????###########????# ???????????????? | | #??????# ######+######+## ?? | | #??????# """ + ?? | | ######## """"?" ###### "T??? | | ###### # # "????" #????# ?? | | ?????# # "" # "????" #????############ ?? | | ?????# # """ # "?"""" #????????? #??????? | | ?????# # R" ""=g @#??????? /??????? | | ?????# # """ k!g #????? = #??????? | | ?????# + ##+######## ] #??????? | | ?????# # #??# %? / ! #??????? | | ?????# # #### %%##############????????????? | | ?????# # ? #?????????????????????????? | | ?????# # """ ####^^^#?????????????????????????? | | ?????# # """ #??# #?????????????????????????? | | ?????# # """ #??# ?#?????????????????????????? | | ?????# # #??# #?????????????????????????? | | ?????# ########??# #?????????????????????????? | | ?????# ??????????# #?????????????????????????? | | ?????+ ??????????# #?????????????????????????? | | ?????# ??????????# #?????????????????????????? | | ?????# ??????????# #?????????????????????????? | | ?????# ??????????# #?????????????????????????? | | ?????# ??????????# #?????????????????????????? | | ?????? ??????????# #?????????????????????????? | | ???????????????????# #?????????????????????????? | | ???????????????????# #?????????????????????????? | | ???????????????????? ??????????????????????????? | | ?????????????????????????????????????????????????? | | ?????????????????????????????????????????????????? | | ?????????????????????????????????????????????????? | | ?????????????????????????????????????????????????? | +----------------------------------------------------+ Best States ------------- Heat Dissipation 67 Coolant Potential 50 Energy Generation 14 Energy Capacity 250 Matter Stores 300 Matter Capacity 300 Sight Range 16 Robot Scan Range 15 Terrain Scan Density 10 Core Shielding 20 Evasion (%) 55 Offensive Hacking 10 Item Schematics ----------------- None Robot Schematics ------------------ None Fabricated ------------ Nothing Repaired ---------- Nothing Studied --------- Aluminum Leg | -9/Materials | Hacked Lgt. Assault Rifle | -9/Materials | Hacked Hvy. Assault Rifle | -8/Materials | Hacked Beam Rifle | -8/Materials | Hacked Pulse Rifle | -8/Materials | Hacked Imp. Aluminum Leg | -8/Materials | Hacked Imp. Datajack | -8/Materials | Hacked Alien Tech Used ----------------- None Achievements -------------- Junior Dev Not Today, Chutes You Again Challenges ------------ None Game ------ Seed MiningDecoyReplica Manual? 0 Play Time 00:41:59 Cumulative 48.0 hours Start 2025.11.11 @ 15:59:22 End 2025.11.11 @ 16:48:03 Sessions 5 Manual Loads 0 Difficulty Rogue Special Mode None Game No. 32 Rogue 32 Adventurer 0 Explorer 0 Win Type - Total 0 Types 0/0/0/0/0/0/0/0/0/0 Lore% 15 Gallery% 24 Achievement% 18 Wizard Run 0 Options --------- Layout 2 ASCII 1 Keyboard 1 Movement Vi Keybinds 0 Fullscreen 2 Font 32/Terminus Map View 50x44 Zoom Use 0% Tactical HUD 1 Map Filters NONE Filters SHIFT_HUE(330) Steam 1 RUN: d0db5c2e-0ece-4583-aef6-f8757a0d525c